bitfinex-derivatives/quotes_ETHF0:USTF0_20241027
["timestamp","ask_amount","ask_price","bid_price","bid_amount"]
[1730021430325,1.5729441,2468.6,2468.5,3.2078]
[1730021430515,2.4194441,2468.6,2468.5,3.2078]
[1730021432026,2.08405,2468.6,2468.5,3.2078]
[1730021432223,3.2514441,2468.6,2468.5,3.2078]
[1730021433530,2.8201441,2468.6,2468.5,3.2078]
[1730021434429,2.8201441,2468.6,2468.4,0.40557]
[1730021434734,0.832,2468.6,2468.5,3.2078]
[1730021435535,0.832,2468.6,2468.5,4.44727]
[1730021436028,1.23755,2468.6,2468.5,4.0417]
[1730021436234,2.4049441,2468.6,2468.5,4.0417]
[1730021436425,2.4049441,2468.6,2468.5,0.8339]
[1730021436618,2.4049441,2468.6,2468.5,4.0417]
[1730021437030,1.9993941,2468.6,2468.5,4.44727]
[1730021438226,1.9993941,2468.6,2468.5,1.23947]
[1730021438423,1.9993941,2468.6,2468.5,4.44727]
[1730021439520,2.4049441,2468.6,2468.5,4.0417]
[1730021439924,1.9993941,2468.6,2468.5,4.0417]
[1730021440128,1.9993941,2468.6,2468.5,4.44727]
[1730021441521,1.9993941,2468.6,2468.5,1.23947]
[1730021441825,2.4049441,2468.6,2468.5,4.0417]
[1730021442833,2.4049441,2468.6,2468.5,4.44727]
[1730021443631,2.4049441,2468.6,2468.5,1.23947]
[1730021443823,2.4049441,2468.6,2468.5,4.0417]
[1730021444734,2.4049441,2468.6,2468.5,3.2078]
[1730021446927,0.40563,2468.2,2467.9,3.61346]
[1730021447133,1.1673941,2468.0,2467.9,3.61346]
[1730021447335,2.0003941,2468.0,2467.9,3.61346]
[1730021448637,1.1673941,2468.0,2467.9,3.61346]
[1730021451837,1.1673941,2468.0,2467.9,0.40566]
[1730021452136,1.1673941,2468.0,2467.9,3.61346]
[1730021452745,0.8143,2468.3,2467.9,3.2078]
[1730021453043,2.12398813,2486.5,2468.3,0.40559]
[1730021453044,0.81837,2468.5,2468.3,0.40559]
[1730021453341,0.4128,2468.5,2468.4,0.4456]
[1730021453547,1.65037,2468.5,2468.4,0.4456]
[1730021453931,1.65037,2468.5,2468.4,0.85118]
[1730021454140,0.832,2468.5,2468.4,0.85118]
[1730021454336,1.9993941,2468.5,2468.4,0.85118]
[1730021457038,0.832,2468.6,2468.4,0.4456]
[1730021457250,0.832,2468.6,2468.5,0.84857]
[1730021457453,1.9940141,2468.8,2468.5,0.8531]
[1730021457642,1.9940141,2468.8,2468.6,0.40553]
[1730021457643,0.832,2468.7,2468.6,0.40553]
[1730021457851,2.8260141,2468.8,2468.6,0.40553]
[1730021458243,2.8260141,2468.8,2468.7,0.4371]
[1730021458450,3.9934082,2468.8,2468.7,0.4371]
[1730021458648,1.2531,2468.8,2468.7,0.84263]
[1730021458844,3.5878882,2468.8,2468.7,0.84263]
[1730021459050,3.9934082,2468.8,2468.7,0.84263]
[1730021459248,3.1614082,2468.8,2468.7,0.84263]
[1730021459444,3.5878882,2468.8,2468.7,0.84263]
[1730021460147,3.9934082,2468.8,2468.7,0.84263]
[1730021460347,3.9934082,2468.8,2468.7,0.4371]
[1730021460548,3.9934082,2468.8,2468.7,0.84263]
[1730021460549,1.2531,2468.8,2468.7,0.84263]
[1730021460744,2.7558882,2468.8,2468.7,0.84263]
[1730021463152,3.1614082,2468.8,2468.7,0.4371]
[1730021466848,2.7558882,2468.8,2468.5,3.6508]
[1730021467149,0.40558,2468.4,2468.3,0.4336]
[1730021467348,1.5729741,2468.4,2468.3,0.4336]
[1730021467651,1.1673941,2468.4,2468.3,0.4336]
[1730021467844,1.1673941,2468.4,2468.3,0.8392]
[1730021471657,1.5946941,2468.4,2468.3,0.8392]
[1730021476955,0.832,2468.6,2468.5,0.40555]
[1730021477147,2.4049441,2468.6,2468.4,0.40557]
[1730021477349,1.1673941,2468.5,2468.4,0.40557]
[1730021482656,1.9993941,2468.5,2468.4,0.40557]
[1730021483262,1.9993941,2468.5,2468.3,3.2078]
[1730021483457,1.9817741,2468.4,2468.3,3.2078]
[1730021484768,6.0329741,2468.4,2468.3,3.2078]
[1730021485467,7.2003682,2468.4,2468.3,3.2078]
[1730021485662,6.7947882,2468.4,2468.0,0.40564]
[1730021485970,2.3347882,2468.1,2468.0,0.40564]
[1730021486172,1.1673941,2468.1,2468.0,0.40564]
[1730021486366,1.1673941,2468.1,2467.9,0.4296]
[1730021486563,1.1673941,2468.1,2467.9,0.83525]
[1730021486564,1.1673941,2468.0,2467.9,0.83525]
[1730021491871,0.8634,2468.3,2467.9,0.83525]
[1730021492179,0.8634,2468.3,2468.2,0.40561]
[1730021492180,0.4509,2468.3,2468.2,0.40561]
[1730021492366,0.40563,2468.2,2468.0,3.61343]
[1730021492679,0.40563,2468.2,2468.1,0.40563]
[1730021493267,1.5730241,2468.2,2468.0,0.40564]
[1730021493472,1.1673941,2468.1,2467.9,0.4296]
[1730021493673,1.1673941,2468.0,2467.9,0.83526]
[1730021500973,1.5730441,2468.0,2467.9,0.4296]
[1730021502888,1.9885441,2468.0,2467.9,0.4296]
[1730021504481,0.40568,2467.8,2467.7,3.2078]
[1730021504680,2.4050741,2467.8,2467.7,3.2078]
[1730021506392,0.832,2467.8,2467.7,3.2078]
[1730021506588,1.9993941,2467.8,2467.7,3.6135]
[1730021507084,2.4050741,2467.8,2467.7,3.2078]
[1730021507290,1.9993941,2467.8,2467.7,3.2078]
[1730021507487,1.9993941,2467.8,2467.7,3.6135]
[1730021507989,1.9993941,2467.8,2467.7,3.2078]
[1730021507990,2.4050741,2467.8,2467.7,3.2078]
[1730021508192,2.4050741,2467.8,2467.7,3.6135]
[1730021508390,2.4050741,2467.8,2467.7,0.4057]
[1730021508592,1.9993941,2467.8,2467.7,3.6135]
[1730021511492,0.4429,2467.9,2467.8,0.40568]
[1730021511690,1.9993941,2467.9,2467.8,0.82008]
[1730021511884,1.9993941,2467.9,2467.8,1.68918]
[1730021512089,1.1673941,2467.9,2467.8,1.68918]
[1730021515392,1.2953,2468.2,2468.1,0.40563]
[1730021515593,3.2946941,2468.2,2468.1,0.40563]
[1730021515790,3.2946941,2468.2,2467.8,1.2835]
[1730021515791,4.8677182,2468.2,2468.0,0.40564]
[1730021515992,1.5730341,2468.1,2467.9,0.40566]
[1730021516301,1.1673941,2468.0,2467.9,0.40566]
[1730021518195,1.1673941,2468.0,2467.8,1.24967]
[1730021518392,1.1673941,2467.9,2467.8,1.24967]
[1730021518701,1.1673941,2467.9,2467.8,0.83527]
[1730021518895,1.5730641,2467.9,2467.7,3.61349]
[1730021519092,2.4103941,2467.8,2467.7,3.61349]
[1730021519288,2.4103941,2467.8,2467.7,3.2078]
[1730021519496,2.4103941,2467.8,2467.6,0.4434]
[1730021519809,1.243,2467.8,2467.7,0.4057]
[1730021521500,2.4103941,2467.8,2467.7,0.4057]
[1730021521694,0.832,2468.1,2467.7,3.2078]
[1730021521903,1.23763,2468.1,2467.9,0.40566]
[1730021522198,0.832,2468.1,2467.9,0.40566]
[1730021522401,0.832,2468.1,2468.0,0.4114]
[1730021522703,0.832,2468.1,2468.0,0.81705]
[1730021523003,0.832,2468.1,2468.0,0.4114]
[1730021523496,3.1667882,2468.1,2468.0,0.81705]
[1730021523894,3.1667882,2468.1,2468.0,0.4114]
[1730021524300,3.5724182,2468.1,2468.0,0.4114]
[1730021525706,3.5724182,2468.1,2468.0,0.81705]
[1730021526009,3.5724182,2468.1,2468.0,0.4114]
[1730021526210,3.5724182,2468.1,2468.0,0.81705]
[1730021527512,3.1667882,2468.1,2468.0,0.81705]
[1730021527704,1.9993941,2468.1,2468.0,0.81705]
[1730021528211,3.5724182,2468.1,2468.0,0.81705]
[1730021528710,2.4050241,2468.1,2468.0,0.81705]
[1730021529104,3.5724182,2468.1,2468.0,0.81705]
[1730021529705,3.1667882,2468.1,2468.0,0.81705]
[1730021529898,1.9993941,2468.1,2468.0,0.81705]
[1730021530308,2.4050241,2468.1,2468.0,0.81705]
[1730021530607,1.9993941,2468.1,2468.0,0.81705]
[1730021531709,2.4050241,2468.1,2468.0,0.81705]
[1730021532609,1.9993941,2468.1,2468.0,0.81705]
[1730021533212,0.8818,2468.3,2468.2,0.40561]
[1730021533410,2.4309941,2468.3,2468.2,0.40561]
[1730021533903,0.4316,2468.3,2468.2,0.40561]
[1730021534101,0.832,2468.4,2468.3,0.4056]
[1730021534305,1.1673941,2468.4,2468.3,0.8257]
[1730021536213,0.832,2468.5,2468.4,0.40558]
[1730021536516,1.9993941,2468.5,2468.4,0.40558]
[1730021536711,1.1673941,2468.5,2468.4,3.61338]
[1730021536903,1.1673941,2468.5,2468.4,4.3751941]
[1730021537107,1.2578,2468.8,2468.7,0.40553]
[1730021537505,1.66332,2468.8,2468.6,0.40554]
[1730021537810,1.1673941,2468.7,2468.6,0.82064]
[1730021538210,1.5729241,2468.7,2468.6,0.4151]
[1730021538614,1.5729241,2468.7,2468.6,0.82065]
[1730021538813,1.1673941,2468.7,2468.6,0.82065]
[1730021539307,1.5729241,2468.7,2468.6,0.82065]
[1730021539506,1.5729241,2468.7,2468.6,0.4151]
[1730021539712,1.5996941,2468.7,2468.6,0.82065]
[1730021540019,1.1673941,2468.7,2468.6,0.82065]
[1730021541014,1.2578,2468.8,2468.7,0.40553]
[1730021541204,2.4251941,2468.8,2468.7,0.40553]
[1730021541810,1.1673941,2468.8,2468.7,0.40553]
[1730021543219,1.1673941,2468.8,2468.7,3.61333]
[1730021547318,1.1673941,2468.8,2468.7,0.40553]
[1730021549826,1.6048941,2468.8,2468.7,0.40553]
[1730021552426,0.4375,2468.8,2468.7,0.40553]
[1730021552628,1.6048941,2468.8,2468.7,0.40553]
[1730021555825,2.0104141,2468.8,2468.7,0.40553]
[1730021556828,1.6048941,2468.8,2468.7,0.40553]
[1730021559141,2.0104141,2468.8,2468.7,0.40553]
[1730021559837,1.6048941,2468.8,2468.7,0.40553]
[1730021563646,0.4375,2468.8,2468.7,1.5729241]
[1730021564939,1.5948941,2468.9,2468.8,0.40552]
[1730021564940,1.1673941,2468.9,2468.8,0.40552]
[1730021566255,1.1673941,2468.9,2468.7,1.1673941]
[1730021566445,1.5728941,2468.9,2468.7,1.5729141]
[1730021566845,1.1673941,2468.9,2468.8,0.40552]
[1730021567247,1.5728941,2468.9,2468.8,0.40552]
[1730021567954,1.5728941,2468.9,2468.7,1.1673941]
[1730021568149,1.5728941,2468.9,2468.7,1.5729141]
[1730021571047,1.5728941,2468.9,2468.7,0.40552]
[1730021571748,1.5728941,2468.9,2468.7,0.40553]
[1730021572147,1.1673941,2468.9,2468.8,0.40552]
[1730021572756,1.5728941,2468.9,2468.8,0.40552]
[1730021572957,1.1673941,2468.9,2468.8,0.40552]
[1730021573147,1.1673941,2468.9,2468.6,5.2350941]
[1730021573348,1.5729041,2468.9,2468.7,0.40553]
[1730021574657,1.5729041,2468.9,2468.8,0.40552]
[1730021575756,1.5729041,2468.9,2468.6,5.2350941]
[1730021575954,1.5729041,2468.9,2468.7,0.40552]
[1730021577057,1.9817041,2468.9,2468.7,0.40552]
[1730021581465,2.4048841,2469.0,2468.8,0.4055]
[1730021581862,2.4048841,2469.0,2468.9,0.4201]
[1730021582358,1.67826,2469.2,2469.0,0.40548]
[1730021582560,1.5783941,2469.3,2469.2,0.40545]
[1730021582762,1.64844,2469.3,2469.1,1.5728541]
[1730021582963,1.64844,2469.3,2469.2,0.4201]
[1730021583162,2.8158341,2469.3,2469.2,0.4201]
[1730021583363,2.8158341,2469.3,2469.2,0.82555]
[1730021583558,1.243,2469.3,2469.2,0.82555]
[1730021584363,0.832,2469.3,2469.2,1.9929441]
[1730021584557,0.4099,2469.5,2469.2,1.5874941]
[1730021584762,0.4099,2469.5,2469.4,1.5728141]
[1730021586765,1.1673941,2469.6,2469.5,0.4054]
[1730021586960,5.6125641,2469.7,2469.5,0.8457]
[1730021587159,5.6125641,2469.7,2469.5,2.4357941]
[1730021587356,5.6125641,2469.7,2469.6,0.435]
[1730021588463,1.1673941,2469.7,2469.6,0.435]
[1730021588668,1.1673941,2469.7,2469.6,0.84038]
[1730021589457,16.66991434,2469.8,2469.6,1.6023941]
[1730021589658,16.66991434,2469.8,2469.7,1.5727641]
[1730021593670,3.2078,2470.1,2469.7,5.2161941]
[1730021593969,3.2078,2470.1,2470.0,1.5727141]
[1730021595873,0.8605,2470.3,2470.1,0.4053]
[1730021596169,4.7804241,2470.6,2470.3,0.40526]
[1730021596363,4.7804141,2470.6,2470.5,1.1673941]
[1730021596564,4.7804141,2470.6,2470.4,1.1673941]
[1730021597469,4.7804141,2470.6,2470.2,0.4275]
[1730021597470,0.40525,2470.4,2470.2,0.4275]
[1730021597669,3.2078,2470.6,2470.1,1.1673941]
[1730021597670,2.4220941,2470.3,2470.1,1.1673941]
[1730021598181,1.65998,2470.3,2470.2,1.1673941]
[1730021598775,0.4053,2470.2,2470.0,3.2078]
[1730021598972,1.1673941,2470.2,2470.0,4.3751941]
[1730021599169,0.40532,2470.0,2469.9,1.1673941]
[1730021599569,0.84262,2470.0,2469.9,1.1673941]
[1730021604367,0.40534,2469.9,2469.8,1.1673941]
[1730021604568,2.4155341,2469.9,2469.8,1.1673941]
[1730021604774,6.4643341,2469.9,2469.8,1.1673941]
[1730021605176,2.4155341,2469.9,2469.8,1.1673941]
[1730021605367,2.0101941,2469.9,2469.8,1.1673941]
[1730021605573,1.24814,2469.9,2469.8,1.1673941]
[1730021606573,0.8428,2469.9,2469.8,1.1673941]
[1730021607283,0.8428,2469.9,2469.8,1.5727441]
[1730021608178,0.4092,2469.9,2469.8,1.5727441]
[1730021608383,1.9983941,2470.1,2469.8,1.1673941]
[1730021608683,1.9983941,2470.1,2470.0,1.5727141]
[1730021609079,6.0471941,2470.1,2470.0,1.5727141]
[1730021609275,4.0488,2470.1,2470.0,1.5727141]
[1730021609476,0.831,2470.2,2470.1,0.4053]
[1730021609676,0.831,2470.2,2470.1,1.1673941]
[1730021609877,1.23629,2470.2,2470.1,1.1673941]
[1730021610185,1.5726841,2470.2,2470.1,1.1673941]
[1730021610383,1.1673941,2470.2,2470.1,1.1673941]
[1730021610882,1.5726841,2470.2,2470.1,1.1673941]
[1730021611279,1.1673941,2470.2,2470.1,1.1673941]
[1730021611479,1.1673941,2470.2,2470.1,1.5726941]
[1730021611679,1.5726841,2470.2,2470.1,1.1673941]
[1730021612681,1.1673941,2470.2,2470.1,1.5726941]
[1730021615878,3.61306,2470.4,2470.2,0.40529]
[1730021616182,3.61306,2470.4,2469.9,0.422]
[1730021616183,0.831,2470.4,2470.3,2.8871541]
[1730021617487,1.9983941,2470.4,2470.3,1.71976]
[1730021617688,1.9983941,2470.4,2470.3,1.27716]
[1730021621390,0.831,2470.4,2470.3,2.4445541]
[1730021621596,1.9983941,2470.4,2470.2,1.1673941]
[1730021621789,1.9983941,2470.4,2470.1,3.61309]
[1730021621790,0.40529,2470.2,2470.1,4.3751941]
[1730021621989,1.5726841,2470.2,2470.1,3.2078]
[1730021622288,5.6206841,2470.2,2470.1,3.2078]
[1730021622994,5.6206841,2470.2,2470.1,4.3751941]
[1730021623184,5.2153941,2470.2,2470.0,0.8291]
[1730021623382,0.4053,2470.1,2470.0,1.9964941]
[1730021624196,0.4053,2470.1,2470.0,1.5750941]
[1730021624487,1.2925,2470.1,2470.0,1.5750941]
[1730021627394,0.8509,2470.1,2470.0,1.5750941]
[1730021627696,0.40529,2470.2,2470.0,1.9804041]
[1730021627896,0.40529,2470.2,2470.1,1.1673941]
[1730021628192,0.40529,2470.2,2470.1,1.6141941]
[1730021629184,2.0226741,2470.3,2470.1,2.0194941]
[1730021629491,2.0226741,2470.3,2470.1,2.4393941]
[1730021629990,0.85528,2470.3,2470.1,2.4393941]
[1730021630388,0.85528,2470.3,2470.1,2.0340941]
[1730021630594,0.85528,2470.3,2470.1,2.4393841]
[1730021632196,0.40529,2470.2,2470.1,2.0340941]
[1730021632498,0.40529,2470.2,2470.1,0.8667]
[1730021632904,2.0587941,2470.3,2470.1,0.8667]
[1730021633102,2.4640741,2470.3,2470.1,1.272]
[1730021634301,0.8914,2470.3,2470.1,0.4053]
[1730021634499,0.40529,2470.2,2470.0,1.9804041]
[1730021636998,1.5726941,2470.1,2470.0,0.4077]
[1730021637411,0.4053,2470.1,2470.0,1.5750941]
[1730021642405,1.5726941,2470.1,2470.0,0.4077]
[1730021642706,0.4053,2470.1,2470.0,1.5750941]
[1730021646299,2.4441941,2470.2,2469.9,0.41]
[1730021646505,0.40532,2470.0,2469.9,0.41]
[1730021654112,1.2768,2470.2,2470.0,0.40531]
[1730021654113,1.9986941,2470.2,2470.0,0.40531]
[1730021654316,1.9986941,2470.2,2470.1,0.4106]
[1730021657113,1.5933941,2470.2,2469.9,1.5773941]
[1730021657322,0.40532,2470.0,2469.9,2.4118241]
[1730021657509,0.40532,2470.0,2469.9,1.24443]
[1730021657718,1.5979941,2470.1,2469.9,0.8391]
[1730021657915,2.0033041,2470.1,2470.0,0.40532]
[1730021658420,0.40532,2470.0,2469.9,1.24443]
[1730021658823,1.5979941,2470.1,2469.9,1.24443]
[1730021659127,0.40532,2470.0,2469.9,1.24443]
[1730021659533,0.40532,2470.0,2469.9,0.4291]
[1730021659923,0.40531,2470.1,2469.9,0.83442]
[1730021660319,1.5933941,2470.2,2469.9,0.83442]
[1730021660615,1.5727141,2470.0,2469.9,0.4291]
[1730021660820,2.4037141,2470.0,2469.9,0.4291]
[1730021668127,2.4037141,2470.0,2469.9,0.4291]
[1730021670227,6.4525141,2470.0,2469.9,0.4291]
[1730021670725,0.40535,2469.9,2469.7,1.9989541]
[1730021671028,0.40535,2469.8,2469.7,2.0067941]
[1730021671221,0.40535,2469.8,2469.7,2.4121641]
[1730021673433,0.81405,2469.9,2469.7,2.4121641]
[1730021674235,0.81405,2469.9,2469.8,0.4435]
[1730021677636,0.40535,2469.9,2469.8,0.4435]
[1730021678732,1.5727441,2469.9,2469.8,0.4435]
[1730021678938,1.5727441,2469.9,2469.7,0.8394]
[1730021678939,0.40535,2469.8,2469.7,0.4132]
[1730021679133,5.2161941,2469.8,2469.4,3.2078]
[1730021679340,0.4054,2469.5,2469.4,0.4215]
[1730021679634,1.2364,2469.5,2469.4,0.4215]
[1730021681039,0.831,2469.5,2469.4,1.5888941]
[1730021681241,0.831,2469.5,2469.4,1.9943141]
[1730021689745,0.831,2469.7,2469.6,0.40538]
[1730021689943,0.831,2469.7,2469.6,1.5727741]
[1730021690540,1.23637,2469.7,2469.6,1.5727741]
[1730021690843,0.40536,2469.8,2469.6,1.5727741]
[1730021691043,1.23636,2469.8,2469.7,2.0349941]
[1730021691237,1.23636,2469.8,2469.7,2.4869941]
[1730021693245,0.831,2469.8,2469.7,2.8923641]
[1730021693833,0.831,2469.8,2469.7,2.4869941]
[1730021693834,1.23635,2469.8,2469.7,2.4869941]
[1730021698045,2.4037441,2469.8,2469.7,1.3196]
[1730021700543,1.9983941,2469.8,2469.7,1.72497]
[1730021700939,1.9983941,2469.8,2469.7,1.3196]
[1730021701149,2.4037441,2469.8,2469.7,1.3196]
[1730021701944,1.9983941,2469.8,2469.7,1.72497]
[1730021702443,1.9983941,2469.8,2469.7,2.8923641]
[1730021705048,2.4037441,2469.8,2469.7,0.8742]
[1730021705248,2.4037441,2469.8,2469.7,0.452]
[1730021705440,0.40538,2469.6,2469.4,3.2078]
[1730021705747,2.0020941,2469.5,2469.4,3.6486]
[1730021705943,2.8657941,2469.5,2469.4,0.4408]
[1730021706652,2.8657941,2469.5,2469.4,0.84622]
[1730021708041,2.8657941,2469.5,2469.4,2.0136141]
[1730021708042,2.4603941,2469.5,2469.4,2.0136141]
[1730021708352,0.8617,2469.5,2469.4,5.2214141]
[1730021709053,3.2078,2469.9,2469.4,4.8159941]
[1730021709348,0.40538,2469.7,2469.6,1.1673941]
[1730021709542,0.40539,2469.6,2469.5,1.1673941]
[1730021709741,0.40539,2469.6,2469.5,1.5727941]
[1730021710538,0.40539,2469.6,2469.5,1.1673941]
[1730021710742,0.4054,2469.5,2469.4,5.2214041]
[1730021711146,0.8368,2469.5,2469.4,5.2214041]
[1730021711343,2.0041941,2469.5,2469.4,4.05401]
[1730021711740,2.0041941,2469.5,2469.4,3.6486]
[1730021712652,2.0041941,2469.5,2469.4,3.2078]
[1730021712847,5.6483941,2469.5,2469.2,2.42723132]
[1730021713048,1.5728241,2469.3,2469.2,2.42723132]
[1730021713250,1.5728241,2469.3,2469.2,2.02178132]
[1730021713448,2.4038241,2469.3,2469.2,1.59488132]
[1730021713656,6.4534241,2469.3,2469.2,1.59488132]
[1730021714355,2.4038241,2469.3,2469.2,1.59488132]
[1730021714852,0.831,2469.3,2469.2,3.16771542]
[1730021715154,1.9983941,2469.3,2469.2,2.00032132]
[1730021715356,1.9983941,2469.3,2469.2,0.40544]
[1730021715558,1.9983941,2469.3,2469.2,0.4391]
[1730021718958,0.831,2469.3,2469.2,1.6064941]
[1730021719158,0.831,2469.3,2469.2,2.0119441]
[1730021720657,1.2834,2469.4,2469.3,0.40543]
[1730021720956,1.2834,2469.4,2469.3,2.0216241]
[1730021721256,1.2834,2469.4,2469.3,2.4454241]
[1730021723460,1.2834,2469.4,2469.3,1.27803]
[1730021723659,2.4507941,2469.4,2469.3,1.27803]
[1730021726761,6.5003941,2469.4,2469.1,0.40546]
[1730021726959,1.5728541,2469.2,2468.9,5.1940841]
[1730021727460,1.1673941,2469.2,2469.0,0.40548]
[1730021727653,1.1673941,2469.2,2469.1,0.40547]
[1730021728166,1.5728541,2469.2,2469.0,1.5728641]
[1730021729656,1.5728541,2469.2,2468.9,0.4134]
[1730021729657,1.1673941,2469.1,2468.9,0.4134]
[1730021729883,0.4167,2469.0,2468.9,0.4055]
[1730021730065,0.8467,2469.0,2468.9,0.4055]
[1730021733759,2.0140941,2469.0,2468.9,0.4055]
[1730021735763,0.4167,2469.0,2468.9,1.5728941]
[1730021737171,1.5840941,2469.0,2468.9,0.4055]
[1730021738767,1.5840941,2469.0,2468.8,1.5966941]
[1730021738768,0.40553,2468.7,2468.6,3.2078]
[1730021738975,2.4039241,2468.7,2468.6,3.2078]
[1730021739371,2.4039241,2468.7,2468.5,0.4218]
[1730021739372,0.40555,2468.6,2468.5,0.4218]
[1730021739569,2.4272441,2468.6,2468.4,0.40558]
[1730021739772,1.1673941,2468.5,2468.4,0.40558]
[1730021740565,1.1673941,2468.5,2468.3,1.5757941]
[1730021741172,1.1673941,2468.5,2468.3,1.9813841]
[1730021741573,1.5729641,2468.5,2468.3,1.9813841]
[1730021741976,1.1673941,2468.5,2468.3,1.9813841]
[1730021743270,1.5729641,2468.5,2468.3,1.9813841]
[1730021743470,1.1673941,2468.5,2468.3,1.5757941]
[1730021743775,1.1673941,2468.5,2468.4,0.40558]
[1730021748279,1.6104941,2468.6,2468.4,1.5729741]
[1730021749584,2.0160441,2468.6,2468.4,1.5729741]
[1730021749784,1.6104941,2468.6,2468.5,0.40557]
[1730021749987,1.6104941,2468.6,2468.4,1.1673941]
[1730021750282,1.6104941,2468.6,2468.4,1.5729641]
[1730021752079,2.0160441,2468.6,2468.4,1.5729641]
[1730021752274,3.2078,2468.8,2468.4,1.1673941]
[1730021752275,0.831,2468.5,2468.4,1.1673941]
[1730021752492,1.1673941,2468.9,2468.8,0.40552]
[1730021752686,1.9983941,2468.9,2468.7,1.5729141]
[1730021752895,1.1673941,2468.9,2468.8,0.82612]
[1730021753198,1.9983941,2468.9,2468.8,0.82612]
[1730021754503,1.9983941,2468.9,2468.8,0.4206]
[1730021755206,1.9983941,2468.9,2468.8,0.82612]
[1730021755495,1.9983941,2468.9,2468.8,0.4206]
[1730021755496,2.4038941,2468.9,2468.8,0.4206]
[1730021757102,1.9983941,2468.9,2468.8,0.4206]
[1730021757790,2.4038941,2468.9,2468.8,0.4206]
[1730021758602,1.9983941,2468.9,2468.8,0.4206]
[1730021758991,1.9983941,2468.9,2468.8,0.82612]
[1730021759999,2.4038941,2468.9,2468.8,0.4206]
[1730021762001,2.4038941,2468.9,2468.7,0.40552]
[1730021762189,1.1673941,2468.8,2468.7,0.40552]
[1730021763397,1.1673941,2468.8,2468.6,0.8378]
[1730021763704,1.1673941,2468.7,2468.6,1.24334]
[1730021765299,5.2177941,2468.7,2468.4,3.2078]
[1730021765503,1.5729741,2468.5,2468.3,0.40559]
[1730021765702,1.1673941,2468.4,2468.3,0.40559]
[1730021767905,1.1673941,2468.4,2468.3,0.84429]
[1730021769001,1.9983941,2468.4,2468.3,0.84429]
[1730021770000,1.9983941,2468.4,2468.3,2.0116841]
[1730021770800,1.9983941,2468.4,2468.3,0.4387]
[1730021771101,1.9983941,2468.4,2468.1,0.4259]
[1730021771295,1.5729941,2468.3,2468.1,0.83152]
[1730021771495,1.1673941,2468.2,2468.1,1.24472]
[1730021773211,1.5730041,2468.2,2468.1,1.24472]
[1730021773402,1.1673941,2468.2,2468.1,1.24472]
[1730021773801,1.6028941,2468.2,2468.1,1.24472]
[1730021775000,1.6028941,2468.2,2468.1,0.81882]
[1730021775707,0.4355,2468.2,2468.1,0.81882]
[1730021776005,0.4188,2468.6,2468.4,0.40558]
[1730021776204,1.9983941,2468.5,2468.4,0.40558]
[1730021777702,1.1673941,2468.6,2468.4,5.2185941]
[1730021777899,1.1673941,2468.6,2468.5,1.5729641]
[1730021778311,1.1673941,2468.6,2468.5,5.6241641]
[1730021779098,1.1673941,2468.6,2468.5,4.0512]
[1730021779305,1.1673941,2468.6,2468.4,3.2078]
[1730021779513,1.1673941,2468.5,2468.4,3.61337]
[1730021781313,1.1673941,2468.5,2468.2,4.092]
[1730021781514,0.40557,2468.5,2468.3,0.40559]
[1730021782218,2.1767,2468.7,2468.2,4.06631]
[1730021782219,0.40559,2468.4,2468.2,4.06631]
[1730021782510,0.83559,2468.4,2468.2,4.06631]
[1730021783311,1.1673941,2468.5,2468.4,0.40557]
[1730021784414,2.12964,2468.7,2468.4,1.1673941]
[1730021784415,1.1673941,2468.6,2468.4,1.1673941]
[1730021784719,1.9983941,2468.6,2468.5,0.40555]
[1730021787817,1.9983941,2468.6,2468.5,0.81515]
[1730021791315,0.831,2468.8,2468.5,4.7847941]
[1730021791516,0.831,2468.8,2468.7,0.40553]
[1730021793313,0.831,2468.9,2468.6,0.442]
[1730021793629,0.831,2468.9,2468.8,0.4055]
[1730021794919,1.9983941,2468.9,2468.8,0.4055]
[1730021795420,2.4038941,2468.9,2468.7,0.40552]
[1730021795621,1.1673941,2468.8,2468.7,0.40553]
[1730021796017,3.2078,2469.0,2468.9,0.4055]
[1730021796220,5.2061941,2469.0,2468.9,0.4055]
[1730021796624,1.2759,2469.2,2468.9,5.2177941]
[1730021796625,0.8488,2469.2,2468.9,5.2177941]
[1730021796822,0.831,2469.4,2469.3,0.40543]
[1730021797216,0.831,2469.4,2469.1,0.4341]
[1730021797521,1.23643,2469.4,2469.1,0.40546]
[1730021798314,1.1673941,2469.2,2469.1,0.40546]
[1730021800626,2.0499941,2469.2,2469.1,0.40546]
[1730021804924,1.6068941,2469.2,2469.1,0.40546]
[1730021807922,0.40544,2469.3,2469.1,0.40546]
[1730021807923,1.1673941,2469.3,2469.1,4.0496]
[1730021808123,1.1673941,2469.3,2469.2,0.82735]
[1730021808322,1.1673941,2469.3,2469.2,1.23985]
[1730021808523,1.1673941,2469.3,2469.2,5.28945]
[1730021809523,1.1673941,2469.3,2469.2,1.23985]
[1730021809926,1.1673941,2469.3,2469.2,5.28945]
[1730021811037,1.1673941,2469.3,2469.2,0.82735]
[1730021815030,1.9983941,2469.5,2469.4,0.40542]
[1730021815334,1.1673941,2469.5,2469.4,0.40542]
[1730021825561,0.4509,2469.6,2469.5,0.4054]
[1730021825746,1.6182941,2469.6,2469.5,0.4054]
[1730021829247,1.6182941,2469.6,2469.3,2.0526941]
[1730021829248,1.6182941,2469.6,2469.3,0.8853]
[1730021829453,1.1673941,2469.4,2469.3,1.29073]
[1730021830957,1.1673941,2469.4,2469.3,0.84173]
[1730021834248,0.40538,2469.7,2469.5,0.40539]
[1730021834459,1.5727741,2469.6,2469.5,0.40539]
[1730021834660,1.5727741,2469.6,2469.3,1.6036941]
[1730021834661,1.5727741,2469.6,2469.4,0.4203]
[1730021834961,1.5727741,2469.6,2469.4,0.82571]
[1730021835556,1.5727741,2469.6,2469.5,0.4054]
[1730021835862,2.0006741,2469.6,2469.5,0.4054]
[1730021836160,2.0006741,2469.6,2469.4,0.82571]
[1730021836358,1.5727941,2469.5,2469.4,0.82571]
[1730021836556,1.5727941,2469.5,2469.4,0.40541]
[1730021837062,1.9932941,2469.5,2469.4,0.40541]
[1730021838453,1.9932941,2469.5,2469.3,0.40542]
[1730021838648,1.5878941,2469.5,2469.4,0.40542]